fUSD/lending_fUSD_20260324
["ID","MTS","AMOUNT","RATE_DAILY","PERIOD"]
[408848493,1774338818291,-500.0,0.00044931,120]
[408848494,1774338818301,-1009.25,0.00044931,120]
[408848495,1774338818310,-707.37,0.00044931,120]
[408848496,1774338818320,-1156.03,0.00044931,14]
[408848497,1774338818329,-999.55,0.00044931,120]
[408848498,1774338818339,-970.63,0.00044931,120]
[408848499,1774338818348,-650.62,0.00044931,30]
[408848500,1774338818358,-725.53,0.00044931,120]
[408848501,1774338818367,-500.0,0.00044931,120]
[408848502,1774338818377,-1014.92,0.00044931,120]
[408848503,1774338818386,-2689.33,0.00044931,120]
[408848504,1774338818395,-500.0,0.00044931,120]
[408848505,1774338818407,-500.0,0.00044931,120]
[408848506,1774338818417,-500.0,0.00044931,120]
[408848507,1774338818426,-1544.85,0.00044931,120]
[408848508,1774338818435,-500.0,0.00044931,120]
[408848509,1774338818446,-500.0,0.00044931,120]
[408848510,1774338818456,-1269.14,0.00044931,120]
[408848511,1774338818465,-500.0,0.00044931,120]
[408848512,1774338818475,-665.15,0.00044931,120]
[408848513,1774338818486,-680.42,0.00044931,120]
[408848514,1774338818495,-500.0,0.00044931,120]
[408848515,1774338818505,-500.0,0.00044931,120]
[408848516,1774338818515,-500.0,0.00044931,120]
[408848517,1774338818655,-1769.26,0.00044931,120]
[408848518,1774338818666,-512.42,0.00044931,120]
[408848519,1774338818676,-500.0,0.00044931,120]
[408848520,1774338818686,-500.0,0.00044931,120]
[408848521,1774338818696,-500.0,0.00044931,120]
[408848522,1774338818706,-1705.77,0.00044931,120]
[408848523,1774338818715,-978.43,0.00044931,120]
[408848524,1774338818724,-500.0,0.00044931,120]
[408848525,1774338818734,-500.0,0.00044931,120]
[408848526,1774338818743,-500.0,0.00044931,120]
[408848527,1774338818752,-500.0,0.00044931,120]
[408848528,1774338818760,-1215.44,0.00044931,120]
[408848529,1774338818770,-500.0,0.00044931,120]
[408848530,1774338818780,-1046.27,0.00044931,120]
[408848531,1774338818789,-500.0,0.00044931,120]
[408848532,1774338818798,-500.0,0.00044931,120]
[408848533,1774338818808,-1613.72,0.00044931,120]
[408848534,1774338818818,-1897.96,0.00044931,120]
[408848535,1774338818830,-770.58,0.00044931,120]
[408848536,1774338818841,-1960.33,0.00044931,120]
[408848537,1774338818852,-3056.27,0.00044931,120]
[408848538,1774338818861,-1228.99,0.00044931,120]
[408848539,1774338818870,-680.28,0.00044931,120]
[408848540,1774338818879,-769.44,0.00044931,120]
[408848541,1774338818888,-500.0,0.00044931,120]
[408848542,1774338818897,-500.0,0.00044931,120]
[408848543,1774338818907,-500.0,0.00044931,120]
[408848544,1774338818916,-500.0,0.00044931,120]
[408848545,1774338818925,-1078.9,0.00044931,120]
[408848546,1774338818935,-1780.32,0.00044931,120]
[408848547,1774338818944,-1099.3,0.00044931,120]
[408848548,1774338818953,-699.82,0.00044931,120]
[408848549,1774338818962,-855.78,0.00044931,120]
[408848550,1774338818971,-759.17,0.00044931,120]
[408848551,1774338818981,-346.85404718,0.00044931,120]
[408848552,1774338818990,-931.09,0.00044931,120]
[408848553,1774338819000,-815.17,0.00044931,120]
[408848554,1774338819009,-656.8,0.00044931,120]
[408848555,1774338819018,-375.97222455,0.00044931,120]
[408848556,1774338819027,-500.0,0.00044931,120]
[408848557,1774338819036,-500.0,0.00044931,120]
[408848558,1774338819046,-614.51,0.00044931,120]
[408848559,1774338819055,-671.25,0.00044931,120]
[408848560,1774338819065,-1323.85,0.00044931,7]
[408848561,1774338819074,-500.0,0.00044931,14]
[408848562,1774338819083,-500.0,0.00044931,120]
[408848563,1774338819093,-984.57,0.00044931,120]
[408848564,1774338819102,-500.0,0.00044931,120]
[408848565,1774338819112,-500.0,0.00044931,120]
[408848566,1774338819121,-729.45,0.00044931,120]
[408848567,1774338819130,-926.4,0.00044931,120]
[408848568,1774338819139,-1291.11,0.00044931,120]
[408848569,1774338819148,-560.4,0.00044931,120]
[408848570,1774338819158,-617.21,0.00044931,120]
[408848571,1774338819167,-1726.06,0.00044931,120]
[408848572,1774338819177,-500.0,0.00044931,120]
[408848573,1774338819186,-500.0,0.00044931,120]
[408848574,1774338819196,-1356.13,0.00044931,120]
[408848575,1774338819205,-801.87,0.00044931,120]
[408848576,1774338819215,-821.12,0.00044931,120]
[408848577,1774338819224,-606.21978747,0.00044931,120]
[408848578,1774338819233,-866.85,0.00044931,120]
[408848579,1774338819242,-500.0,0.00044931,120]
[408848580,1774338819252,-500.0,0.00044931,120]
[408848581,1774338819261,-2922.62,0.00044931,60]
[408848582,1774338819270,-2859.83,0.00044931,120]
[408848583,1774338819279,-665.38,0.00044931,120]
[408848584,1774338819289,-644.49,0.00044931,120]
[408848585,1774338819298,-4166.66,0.00044931,120]
[408848586,1774338819308,-719.59,0.00044931,120]
[408848587,1774338819318,-679.57,0.00044931,120]
[408848588,1774338819327,-599.93,0.00044931,120]
[408848589,1774338819336,-500.0,0.00044931,120]
[408848590,1774338819346,-1432.07,0.00044931,120]
[408848591,1774338819355,-730.01,0.00044931,120]
[408848592,1774338819364,-508.87,0.00044931,120]
[408848593,1774338819373,-883.47,0.00044931,120]
[408848594,1774338819382,-500.0,0.00044931,120]
[408848595,1774338819392,-759.73,0.00044931,120]
[408848596,1774338819401,-1171.93,0.00044931,120]
[408848597,1774338819414,-892.78,0.00044931,120]
[408848598,1774338819424,-749.74,0.00044931,120]
[408848599,1774338819433,-978.13,0.00044931,120]
[408848600,1774338819444,-674.49,0.00044931,120]
[408848601,1774338819454,-1973.42,0.00044931,120]
[408848602,1774338819463,-1355.12,0.00044931,120]
[408848603,1774338819472,-1044.01,0.00044931,120]
[408848604,1774338819484,-500.0,0.00044931,120]
[408848605,1774338819494,-786.73,0.00044931,120]
[408848606,1774338819503,-500.0,0.00044931,120]
[408848607,1774338819512,-500.0,0.00044931,120]
[408848608,1774338819522,-1476.03,0.00044931,120]
[408848609,1774338819532,-647.98,0.00044931,120]
[408848610,1774338819541,-947.33,0.00044931,120]
[408848611,1774338819550,-590.04,0.00044931,120]
[408848612,1774338819560,-924.76,0.00044931,120]
[408848613,1774338819569,-500.0,0.00044931,120]
[408848614,1774338819578,-1633.92,0.00044931,120]
[408848615,1774338819587,-1295.04,0.00044931,120]
[408848616,1774338819597,-1441.35,0.00044931,60]
[408848617,1774338819606,-588.11,0.00044931,120]
[408848618,1774338819616,-1951.73,0.00044931,120]
[408848619,1774338819625,-500.0,0.00044931,120]
[408848620,1774338819634,-2782.79,0.00044931,120]
[408848621,1774338819643,-605.44,0.00044931,120]
[408848622,1774338819652,-894.69,0.00044931,120]
[408848623,1774338819661,-500.0,0.00044931,120]
[408848624,1774338819670,-525.27,0.00044931,120]
[408848625,1774338819680,-500.0,0.00044931,120]
[408848626,1774338819689,-1730.58,0.00044931,120]
[408848627,1774338819698,-517.76,0.00044931,120]
[408848628,1774338819708,-214.41095192,0.00044931,120]
[408848629,1774338819718,-500.0,0.00044931,120]
[408848630,1774338819727,-1269.84,0.00044931,120]
[408848631,1774338819737,-1536.15,0.00044931,120]
[408848632,1774338819746,-1493.36,0.00044931,120]
[408848633,1774338819755,-500.0,0.00044931,120]
[408848634,1774338819764,-600.11,0.00044931,120]
[408848635,1774338819774,-1551.97,0.00044931,120]
[408848636,1774338819783,-632.12,0.00044931,120]
[408848637,1774338819792,-724.43,0.00044931,120]
[408848638,1774338819802,-2431.7,0.00044931,120]
[408848639,1774338819811,-1747.14,0.00044931,120]
[408848640,1774338819820,-1632.69,0.00044931,120]
[408848641,1774338819829,-1186.56,0.00044931,120]
[408848642,1774338819838,-1598.01,0.00044931,120]
[408848643,1774338819847,-500.0,0.00044931,120]
[408848644,1774338819856,-500.0,0.00044931,120]
[408848645,1774338819865,-517.15,0.00044931,120]
[408848646,1774338819875,-1075.02,0.00044931,120]
[408848647,1774338819884,-267.10577292,0.00044931,120]
[408848648,1774338819894,-1616.03,0.00044931,120]
[408848649,1774338819903,-500.0,0.00044931,120]
[408848650,1774338819912,-1428.85,0.00044931,120]
[408848651,1774338819921,-500.0,0.00044931,120]
[408848652,1774338819930,-500.0,0.00044931,120]
[408848653,1774338819939,-665.63,0.00044931,120]
[408848654,1774338819948,-866.03,0.00044931,120]
[408848655,1774338819957,-1926.05,0.00044931,120]
[408848656,1774338819966,-2687.41,0.00044931,120]
[408848657,1774338819974,-728.07,0.00044931,120]
[408848658,1774338819983,-638.16,0.00044931,120]
[408848659,1774338819992,-500.0,0.00044931,120]
[408848660,1774338820001,-604.38,0.00044931,120]
[408848661,1774338820010,-1493.48,0.00044931,30]
[408848662,1774338820019,-801.43,0.00044931,120]
[408848663,1774338820028,-752.4,0.00044931,120]
[408848664,1774338820038,-552.47,0.00044931,120]
[408848665,1774338820047,-500.0,0.00044931,120]
[408848666,1774338820056,-995.77,0.00044931,120]
[408848667,1774338820065,-500.0,0.00044931,120]
[408848668,1774338820074,-878.89,0.00044931,120]
[408848669,1774338820083,-2173.76,0.00044931,120]
[408848670,1774338820092,-1298.61,0.00044931,120]
[408848671,1774338820102,-1791.61,0.00044931,120]
[408848672,1774338820112,-500.0,0.00044931,120]
[408848673,1774338820122,-1260.51,0.00044931,120]
[408848674,1774338820133,-663.27,0.00044931,120]
[408848675,1774338820143,-500.0,0.00044931,120]
[408848676,1774338820152,-1454.94,0.00044931,120]
[408848677,1774338820162,-500.0,0.00044931,120]
[408848678,1774338820171,-1108.88,0.00044931,120]
[408848679,1774338820180,-1258.26,0.00044931,120]
[408848680,1774338820190,-500.0,0.00044931,120]
[408848681,1774338820201,-500.0,0.00044931,120]
[408848682,1774338820211,-631.57,0.00044931,120]
[408848683,1774338820221,-500.0,0.00044931,120]
[408848684,1774338820231,-1791.18,0.00044931,120]
[408848685,1774338820242,-514.08,0.00044931,120]
[408848686,1774338820253,-585.76,0.00044931,120]
[408848687,1774338820262,-1447.52,0.00044931,120]
[408848688,1774338820271,-1601.87,0.00044931,120]
[408848689,1774338820280,-634.53,0.00044931,120]
[408848690,1774338820289,-500.0,0.00044931,120]
[408848691,1774338820298,-500.0,0.00044931,120]
[408848692,1774338820307,-373.17247468,0.00044931,120]
[408848693,1774338820317,-500.0,0.00044931,120]
[408848694,1774338820326,-514.43,0.00044931,120]
[408848695,1774338820335,-500.0,0.00044931,120]
[408848696,1774338820344,-1530.3,0.00044931,120]
[408848697,1774338820353,-1437.77,0.00044931,120]
[408848698,1774338820363,-735.64,0.00044931,120]
[408848699,1774338820372,-500.0,0.00044931,120]
[408848700,1774338820381,-798.73,0.00044931,120]
[408848701,1774338820391,-500.0,0.00044931,120]
[408848702,1774338820400,-2864.08,0.00044931,120]
[408848703,1774338820412,-534.31,0.00044931,120]
[408848704,1774338820421,-500.0,0.00044931,120]
[408848705,1774338820431,-800.61,0.00044931,120]
[408848706,1774338820440,-500.0,0.00044931,120]
[408848707,1774338820450,-500.0,0.00044931,120]
[408848708,1774338820460,-1519.14,0.00044931,120]
[408848709,1774338820469,-579.61,0.00044931,120]
[408848710,1774338820479,-971.22,0.00044931,120]
[408848711,1774338820488,-2175.73,0.00044931,120]
[408848712,1774338820497,-1404.43,0.00044931,120]
[408848713,1774338820506,-651.63,0.00044931,120]
[408848714,1774338820515,-500.0,0.00044931,120]
[408848715,1774338820524,-769.19,0.00044931,120]
[408848716,1774338820534,-666.77,0.00044931,120]
[408848717,1774338820543,-1046.52,0.00044931,120]
[408848718,1774338820552,-500.0,0.00044931,120]
[408848719,1774338820561,-547.19,0.00044931,120]
[408848720,1774338820570,-613.47,0.00044931,120]
[408848721,1774338820580,-608.51336197,0.00044931,120]
[408848722,1774338820589,-664.14,0.00044931,120]
[408848723,1774338820599,-500.55,0.00044931,120]
[408848724,1774338820609,-1409.42,0.00044931,120]
[408848725,1774338820618,-500.0,0.00044931,120]
[408848726,1774338820627,-1958.04,0.00044931,120]
[408848727,1774338820636,-500.0,0.00044931,120]
[408848728,1774338820645,-845.98,0.00044931,120]
[408848729,1774338820659,-788.97,0.00044931,120]
[408848730,1774338820669,-979.08,0.00044931,120]
[408848731,1774338820678,-2271.51,0.00044931,120]
[408848732,1774338820688,-798.9,0.00044931,120]
[408848733,1774338820697,-785.73,0.00044931,120]
[408848734,1774338820706,-1319.48,0.00044931,120]
[408848735,1774338820715,-898.9,0.00044931,120]
[408848736,1774338820724,-1026.81,0.00044931,120]
[408848737,1774338820733,-896.49,0.00044931,2]
[408848738,1774338820743,-591.09,0.00044931,120]
[408848739,1774338820752,-1571.69,0.00044931,120]
[408848740,1774338820762,-951.54,0.00044931,120]
[408848741,1774338820771,-500.0,0.00044931,120]
[408848742,1774338820779,-1576.67,0.00044931,120]
[408848743,1774338820788,-533.43,0.00044931,120]
[408848744,1774338820797,-500.0,0.00044931,120]
[408848745,1774338820806,-1797.77,0.00044931,120]
[408848746,1774338820815,-641.68,0.00044931,30]
[408848747,1774338820825,-908.05,0.00044931,120]
[408848748,1774338820834,-500.0,0.00044931,120]
[408848749,1774338820843,-978.03,0.00044931,120]
[408848750,1774338820853,-500.0,0.00044931,120]
[408848751,1774338820862,-500.0,0.00044931,120]
[408848752,1774338820871,-1254.4,0.00044931,120]
[408848753,1774338820881,-500.0,0.00044931,120]
[408848754,1774338820891,-890.53,0.00044931,120]
[408848755,1774338820900,-794.03,0.00044931,120]
[408848756,1774338820911,-500.0,0.00044931,120]
[408848757,1774338820922,-588.33,0.00044931,120]
[408848758,1774338820932,-954.83,0.00044931,120]
[408848759,1774338820942,-2073.54,0.00044931,120]
[408848760,1774338820952,-642.99,0.00044931,120]
[408848761,1774338820965,-945.89,0.00044931,120]
[408848762,1774338820976,-2204.1,0.00044931,120]
[408848763,1774338820986,-500.0,0.00044931,120]
[408848764,1774338820997,-1685.9,0.00044931,120]
[408848765,1774338821008,-610.5,0.00044931,120]
[408848766,1774338821018,-199.40802179,0.00044931,120]
[408848767,1774338821028,-2030.17,0.00044931,30]
[408848768,1774338821039,-2121.36,0.00044931,120]
[408848769,1774338821051,-976.45,0.00044931,120]
[408848770,1774338821061,-659.65,0.00044931,120]
[408848771,1774338821070,-2554.76,0.00044931,120]
[408848772,1774338821079,-534.01,0.00044931,120]
[408848773,1774338821088,-1990.0,0.00044931,120]
[408848774,1774338821098,-1204.77,0.00044931,120]
[408848775,1774338821108,-1000.85,0.00044931,120]
[408848776,1774338821119,-618.78,0.00044931,120]
[408848777,1774338821130,-500.0,0.00044931,30]
[408848778,1774338821139,-1087.07,0.00044931,120]
[408848779,1774338821150,-500.0,0.00044931,120]
[408848780,1774338821159,-758.91,0.00044931,120]
[408848781,1774338821169,-861.35,0.00044931,120]
[408848782,1774338821178,-639.53,0.00044931,120]
[408848783,1774338821187,-964.47,0.00044931,120]
[408848784,1774338821196,-1790.64,0.00044931,120]
[408848785,1774338821206,-817.12,0.00044931,120]
[408848786,1774338821215,-500.0,0.00044931,120]
[408848787,1774338821225,-1048.96,0.00044931,120]
[408848788,1774338821234,-500.0,0.00044931,120]
[408848789,1774338821243,-617.31,0.00044931,120]
[408848790,1774338821253,-1377.48,0.00044931,120]
[408848791,1774338821262,-1373.09,0.00044931,120]
[408848792,1774338821271,-950.57,0.00044931,120]
[408848793,1774338821280,-500.0,0.00044931,120]
[408848794,1774338821289,-1252.8,0.00044931,120]
[408848795,1774338821298,-500.0,0.00044931,120]
[408848796,1774338821307,-3697.72,0.00044931,2]
[408848797,1774338821316,-500.0,0.00044931,120]
[408848798,1774338821326,-1527.96,0.00044931,120]
[408848799,1774338821334,-589.22,0.00044931,120]
[408848800,1774338821343,-658.92,0.00044931,120]
[408848801,1774338821352,-541.68,0.00044931,120]
[408848802,1774338821362,-1047.63,0.00044931,120]
[408848803,1774338821370,-641.73,0.00044931,120]
[408848804,1774338821380,-570.14,0.00044931,120]
[408848805,1774338821389,-500.0,0.00044931,120]
[408848806,1774338821398,-516.11,0.00044931,120]
[408848807,1774338821411,-1329.81,0.00044931,120]
[408848808,1774338821420,-2000.22,0.00044931,120]
[408848809,1774338821429,-1988.85,0.00044931,120]
[408848810,1774338821438,-2821.24,0.00044931,120]
[408848811,1774338821447,-627.92,0.00044931,120]
[408848812,1774338821457,-471.62744201,0.00044931,90]
[408848813,1774338821466,-819.97,0.00044931,120]
[408848814,1774338821477,-535.91216801,0.00044931,120]
[408848815,1774338821486,-1024.12,0.00044931,120]
[408848816,1774338821495,-1947.88,0.00044931,120]
[408848817,1774338821504,-500.0,0.00044931,120]
[408848818,1774338821514,-810.31,0.00044931,120]
[408848819,1774338821523,-1590.35,0.00044931,120]
[408848820,1774338821533,-688.15,0.00044931,120]
[408848821,1774338821542,-500.0,0.00044931,120]
[408848822,1774338821551,-4167.56,0.00044931,14]
[408848823,1774338821560,-515.79,0.00044931,120]
[408848824,1774338821570,-787.69,0.00044931,120]
[408848825,1774338821581,-698.8,0.00044931,120]
[408848826,1774338821591,-653.93,0.00044931,120]
[408848827,1774338821601,-866.06,0.00044931,120]
[408848828,1774338821611,-659.88,0.00044931,120]
[408848829,1774338821620,-2147.96,0.00044931,120]
[408848830,1774338821630,-936.69,0.00044931,120]
[408848831,1774338821639,-500.0,0.00044931,120]
[408848832,1774338821648,-898.82,0.00044931,120]
[408848833,1774338821658,-627.57,0.00044931,120]
[408848834,1774338821667,-1680.93,0.00044931,120]
[408848835,1774338821677,-500.0,0.00044931,120]
[408848836,1774338821686,-516.86,0.00044931,120]
[408848837,1774338821695,-1731.35,0.00044931,120]
[408848838,1774338821706,-1894.96,0.00044931,120]
[408848839,1774338821715,-570.78,0.00044931,120]
[408848840,1774338821725,-833.21,0.00044931,120]
[408848841,1774338821734,-500.0,0.00044931,120]
[408848842,1774338821744,-678.17,0.00044931,120]
[408848843,1774338821753,-500.0,0.00044931,120]
[408848844,1774338821762,-1154.53,0.00044931,120]
[408848845,1774338821771,-532.48,0.00044931,120]
[408848846,1774338821780,-1168.04,0.00044931,120]
[408848847,1774338821790,-500.0,0.00044931,120]
[408848848,1774338821799,-1084.15,0.00044931,120]
[408848849,1774338821809,-220.38623859,0.00044931,120]
[408848850,1774338821818,-1543.41,0.00044931,120]
[408848851,1774338821828,-524.04,0.00044931,120]
[408848852,1774338821837,-1735.5,0.00044931,120]
[408848853,1774338821848,-528.45,0.00044931,120]
[408848854,1774338821857,-507.54,0.00044931,60]
[408848855,1774338821866,-594.4318781,0.00044931,120]
[408848856,1774338821875,-1522.45,0.00044931,120]
[408848857,1774338821885,-1728.67,0.00044931,120]
[408848858,1774338821894,-1193.94,0.00044931,120]
[408848859,1774338821904,-2483.59,0.00044931,120]
[408848860,1774338821914,-1145.4,0.00044931,120]
[408848861,1774338821924,-500.0,0.00044931,120]
[408848862,1774338821933,-785.33,0.00044931,120]
[408848863,1774338821942,-802.88,0.00044931,120]
[408848864,1774338821952,-773.31,0.00044931,120]
[408848865,1774338821963,-504.31,0.00044931,120]
[408848866,1774338821972,-1766.83,0.00044931,120]
[408848867,1774338821981,-766.14,0.00044931,120]
[408848868,1774338821991,-655.33,0.00044931,120]
[408848869,1774338822001,-500.0,0.00044931,120]
[408848870,1774338822011,-8117.29,0.00044931,120]
[408848871,1774338822020,-1429.82,0.00044931,120]
[408848872,1774338822030,-500.0,0.00044931,120]
[408848873,1774338822040,-1503.53,0.00044931,120]
[408848874,1774338822049,-1630.29,0.00044931,120]
[408848875,1774338822059,-841.35,0.00044931,120]
[408848876,1774338822069,-673.28,0.00044931,120]
[408848877,1774338822079,-1387.91,0.00044931,120]
[408848878,1774338822089,-500.0,0.00044931,7]
[408848879,1774338822099,-500.0,0.00044931,120]
[408848880,1774338822109,-604.72,0.00044931,120]
[408848881,1774338822118,-1280.15,0.00044931,120]
[408848882,1774338822128,-680.83,0.00044931,120]
[408848883,1774338822138,-1687.32,0.00044931,120]
[408848884,1774338822147,-553.79,0.00044931,120]
[408848885,1774338822158,-500.0,0.00044931,120]
[408848886,1774338822167,-500.0,0.00044931,120]
[408848887,1774338822177,-583.19,0.00044931,120]
[408848888,1774338822186,-500.0,0.00044931,120]
[408848889,1774338822196,-500.0,0.00044931,120]
[408848890,1774338822206,-765.82,0.00044931,120]
[408848891,1774338822216,-500.0,0.00044931,120]
[408848892,1774338822226,-240.06907998,0.00044931,120]
[408848893,1774338822236,-2264.25,0.00044931,120]
[408848894,1774338822247,-1037.3,0.00044931,30]
[408848895,1774338822257,-1021.05,0.00044931,120]
[408848896,1774338822267,-2339.0,0.00044931,120]
[408848897,1774338822277,-602.59,0.00044931,120]
[408848898,1774338822286,-1084.43,0.00044931,120]
[408848899,1774338822296,-1040.73,0.00044931,120]
[408848900,1774338822306,-500.0,0.00044931,120]
[408848901,1774338822316,-851.46,0.00044931,120]
[408848902,1774338822326,-1082.75,0.00044931,120]
[408848903,1774338822336,-1633.66,0.00044931,120]
[408848904,1774338822346,-4460.36,0.00044931,120]
[408848905,1774338822356,-1090.06,0.00044931,120]
[408848906,1774338822366,-1298.83,0.00044931,120]
[408848907,1774338822375,-545.35,0.00044931,120]
[408848908,1774338822385,-911.41,0.00044931,120]
[408848909,1774338822395,-1399.28,0.00044931,120]
[408848910,1774338822408,-4326.06,0.00044931,120]
[408848911,1774338822419,-637.83,0.00044931,120]
[408848912,1774338822428,-863.52,0.00044931,60]
[408848913,1774338822438,-521.47,0.00044931,120]
[408848914,1774338822449,-500.0,0.00044931,120]
[408848915,1774338822460,-500.0,0.00044931,14]
[408848916,1774338822470,-500.0,0.00044931,120]
[408848917,1774338822481,-1041.22,0.00044931,120]
[408848918,1774338822491,-500.0,0.00044931,120]
[408848919,1774338822501,-711.52,0.00044931,120]
[408848920,1774338822511,-790.74,0.00044931,120]
[408848921,1774338822521,-2031.81,0.00044931,120]
[408848922,1774338822531,-1067.59,0.00044931,120]
[408848923,1774338822541,-414.59505803,0.00044931,120]
[408848924,1774338822551,-1154.84,0.00044931,120]
[408848925,1774338822561,-1104.3,0.00044931,120]
[408848926,1774338822571,-2348.54,0.00044931,120]
[408848927,1774338822581,-1560.13,0.00044931,120]
[408848928,1774338822591,-541.43,0.00044931,120]
[408848929,1774338822601,-500.0,0.00044931,120]
[408848930,1774338822612,-220.1878046,0.00044931,120]
[408848931,1774338822622,-535.0,0.00044931,120]
[408848932,1774338822633,-858.21,0.00044931,120]
[408848933,1774338822644,-500.0,0.00044931,120]
[408848934,1774338822653,-1021.53,0.00044931,120]
[408848935,1774338822664,-1539.96,0.00044931,120]
[408848936,1774338822677,-592.83,0.00044931,120]
[408848937,1774338822687,-519.74,0.00044931,120]
[408848938,1774338822697,-500.0,0.00044931,120]
[408848939,1774338822708,-813.09,0.00044931,120]
[408848940,1774338822718,-2149.78,0.00044931,120]
[408848941,1774338822728,-1598.49,0.00044931,120]
[408848942,1774338822738,-513.33,0.00044931,120]
[408848943,1774338822748,-833.01,0.00044931,120]
[408848944,1774338822759,-656.49,0.00044931,120]
[408848945,1774338822770,-700.59,0.00044931,120]
[408848946,1774338822780,-500.0,0.00044931,120]
[408848947,1774338822791,-728.42,0.00044931,120]
[408848948,1774338822801,-500.0,0.00044931,120]
[408848949,1774338822811,-500.0,0.00044931,120]
[408848950,1774338822822,-851.0,0.00044932,120]
[408848951,1774338822832,-150.0,0.00044937,120]
[408848952,1774338822842,-212.0,0.0004496,30]
[408848953,1774338822852,-5000.000001,0.00044994,45]
[408848954,1774338822862,-400.02,0.00045,120]
[408848955,1774338822873,-400.0,0.00045,120]
[408848956,1774338822883,-3553.0,0.00045,120]
[408848957,1774338822893,-29296.36464117,0.00045,10]
[408848958,1774338822903,-362.72905046,0.00045,30]
[408848959,1774338822921,-15024.78355792,0.00045,4]
[408848960,1774338822931,-1128.25,0.00045,120]
[408848961,1774338822941,-1000.0,0.00045,30]
[408848962,1774338822951,-3554.0,0.00045,120]
[408848963,1774338822962,-3000.0,0.00045,120]
[408848964,1774338822972,-6000.0,0.00045,32]
[408848965,1774338822982,-173.6964,0.00045,60]
[408848966,1774338822993,-349.78652959,0.00045,120]
[408848967,1774338823003,-1490.0,0.00045,50]
[408848968,1774338823013,-14522.0,0.00045,120]
[408848969,1774338823023,-4010.02424688,0.00045,120]
[408848970,1774338823033,-1212.4,0.00045,120]
[408848971,1774338823043,-302.16,0.00045,10]
[408848972,1774338823053,-12651.05,0.00045,120]
[408848973,1774338823063,-314.62327783,0.00045,5]
[408848974,1774338823074,-1300.52380794,0.00045,120]
[408848975,1774338823084,-180442.25,0.00045,30]
[408848976,1774338823095,-360834.21341744,0.00045,2]
[408848977,1774338823105,-11497.0,0.00045,120]
[408848978,1774338823114,-405.23,0.00045,30]
[408848979,1774338823124,-668.95,0.00045,120]
[408848980,1774338823135,-383.87,0.00045,120]
[408848981,1774338823145,-386.17,0.00045,120]
[408848982,1774338823154,-310.72,0.00045,120]
[408848983,1774338823164,-188.64,0.00045,120]
[408848984,1774338823175,-629.15,0.00045,120]
[408848985,1774338823185,-14593.0,0.00045,60]
[408848986,1774338823195,-32191.1,0.00045,120]
[408848987,1774338823205,-150.0,0.00045,120]
[408848988,1774338823215,-151.0,0.00045007,120]
[408848989,1774338823224,-154.86805991,0.00045007,120]
[408848990,1774338823234,-150.0,0.00045038,120]
[408848991,1774338823244,-161.0,0.00045092,16]
[408848992,1774338823254,-2000.0,0.000451,2]